Cogmind - Beta 14 @@@ ROGUE MODE // 2024.10.19 @ 21:28:17 Player: Ender Result: Destroyed by G-47 Trooper with Particle Gun Performance ------------- Evolutions (0) 0 Regions Visited (1) 200 Robots Destroyed (13) 65 Value Destroyed (292) 292 Prototype IDs (3) 60 Alien Tech Used (0) 0 Bonus (0) 0 TOTAL SCORE: 617 Bonus ------- None Cogmind --------- Core Integrity 0/250 Matter 300/300 Energy 100/100 System Corruption 0% Temperature Hot (209) Movement Core (300) Ox5 Location -10/Materials Parts ------- > --- POWER (1) -------- (None) > --- PROPULSION (2) --- (None) > --- UTILITY (2) ------ Medium Storage Unit Sensor Array > --- WEAPON (2) ------- Beam Cannon Beam Cannon > --- INVENTORY (10) --- Ion Engine Transport Network Coupler Peak State ------------ > --- POWER ------------ Ion Engine > --- PROPULSION ------- Aluminum Leg Aluminum Leg > --- UTILITY ---------- Medium Storage Unit Small Matter Pod > --- WEAPON ----------- EM Pulse Gun Assault Rifle > --- INVENTORY -------- Light Ion Engine Aluminum Leg High-capacity Matter Pod Sensor Array Transport Network Coupler Small Laser Small Laser Beam Cannon Beam Cannon Light Assault Rifle [Rating: 8] Favorites ----------- Power Ion Engine Engine Ion Engine Propulsion Flight Unit Leg Aluminum Leg Flight Unit Flight Unit Utility Medium Storage Unit Device Sensor Array Storage Medium Storage Unit Weapon Assault Rifle Energy Gun EM Pulse Gun Energy Cannon Beam Cannon Ballistic Gun Assault Rifle Build | -11 -10 ------- Run | Yrd Mat Slots Evolved . | . . Power . | . . Propulsion . | . . Utility . | . . Weapon . | . . Parts Attached 23 | 7 16 Power 3 | 2 1 Engine 3 | 2 1 Core . | . . Reactor . | . . Propulsion 9 | 3 6 Treads . | . . Leg 4 | 3 1 Wheel . | . . Hover . | . . Flight 5 | . 5 Utility 5 | . 5 Device 1 | . 1 Storage 4 | . 4 Processor . | . . Hackware . | . . Protection . | . . Artifact . | . . Weapon 6 | 2 4 Energy Gun 3 | 1 2 Energy Cannon 2 | . 2 Ballistic Gun 1 | 1 . Ballistic Cannon . | . . Launcher . | . . Special Weapon . | . . Impact Weapon . | . . Slashing Weapon . | . . Piercing Weapon . | . . Special Melee Weapon . | . . Unidentified Prototypes . | . . Parts Lost 6 | . 6 Power 2 | . 2 Propulsion 3 | . 3 Utility . | . . Weapon 1 | . 1 Highest Loss Streak 4 | . 4 To Critical Strikes . | . . Average Slot Usage (%) 93 | . 93 Engine 13 | . 13 Leg 9 | . 9 Flight 13 | . 13 Device 3 | . 3 Storage 23 | . 23 Energy Gun 9 | . 9 Energy Cannon 5 | . 5 Ballistic Gun 12 | . 12 Peak Build Rating 8 | 5 8 Average Rating 6 | 3 6 On Entrance 2 | . 5 Naked Turns . | . . Heaviest Build 24 | 8 24 Greatest Support 20 | 20 20 Greatest Overweight (x) 7 | . 7 Average Overweight (x) 1 | . 1 Largest Inventory Capacity 10 | 5 10 Average Capacity 8 | 5 9 Most Carried 10 | 4 10 Average Carried 4 | 1 5 Final Capacity 10 | 5 10 Final Carried 4 | 4 2 Class Distribution -------------------- 100% | Mutant Dominant Class ---------------- Mutant | -10/Materials Resources | -11 -10 ----------- Run | Yrd Mat Matter Collected 595 | 279 316 Remotely . | . . Salvage Created 477 | 50 427 Parts 26 | 3 23 Haulers Intercepted 1 | . 1 Recyclers Shooed . | . . Parts Field Recycled . | . . Retrieved Matter . | . . Parts Self-Destructed . | . . Prevented . | . . Kills | -11 -10 ------- Run | Yrd Mat Combat Hostiles Destroyed 10 | 1 9 Guns 9 | 1 8 Cannons 1 | . 1 Classes Destroyed 5 | 1 4 Hauler 1 | . 1 Recycler 1 | . 1 Watcher 1 | . 1 Swarmer 3 | . 3 Grunt 7 | 1 6 Best Kill Streak 4 | 1 4 Combat Bots Only 3 | 1 3 Max Kills in Single Turn 2 | 1 2 Gunslinging . | . . Exploded . | . . Melee . | . . Uniques/NPCs Destroyed . | . . Combat | -11 -10 -------- Run | Yrd Mat Hostile Shots Fired 100 | 5 95 Missed 20 | . 20 Damage Taken 890 | 53 837 Core 265 | 10 255 Absorbed by Shields . | . . Core Remaining (%) 96 | 96 . Volleys Fired 40 | 3 37 Largest 2 | 2 2 Hottest 120 | 60 120 Shots Fired 79 | 6 73 Gun 61 | 6 55 Cannon 18 | . 18 Launcher . | . . Special . | . . Kinetic 33 | 3 30 Thermal 21 | 3 18 Explosive . | . . Electromagnetic 25 | . 25 Robot Hit Streak 6 | 2 6 Robot Miss Streak 5 | 3 5 Penetration Max . | . . Secondary Targets 4 | . 4 Max Gunslinging Chain 1 | . 1 Shots Hit Robots 36 | 2 34 Core Hits 18 | 2 16 Critical Kills . | . . Critical Parts Destroyed . | . . Critical Strikes 1 | . 1 Corrupt 1 | . 1 Melee Attacks . | . . Impact . | . . Slashing . | . . Piercing . | . . Sneak Attacks . | . . Combat Hostiles . | . . Follow-up Attacks . | . . Damage Inflicted 539 | 20 519 Guns 416 | 20 396 Cannons 123 | . 123 Explosions . | . . Melee . | . . Ramming . | . . Kinetic 212 | 10 202 Thermal 133 | 10 123 Explosive . | . . Electromagnetic 194 | . 194 Impact . | . . Slashing . | . . Piercing . | . . Highest Corruption . | . . Average Corruption . | . . Corruption Purged . | . . Corruption Blocked . | . . Overload Shots . | . . Overflow Damage . | . . Projectiles . | . . Explosions . | . . Melee . | . . Knockbacks . | . . Impact . | . . Kinetic . | . . Secondary . | . . Self-Inflicted Damage . | . . Shots . | . . Rammed . | . . Targets Rammed . | . . Kicked . | . . Crushed . | . . Highest Temperature 361 | 18 361 Average Temperature 106 | 13 114 Received Heat Transfer 387 | 30 357 Siege Activations . | . . Robots Corrupted . | . . Combat Hostiles . | . . Parts Fried 2 | . 2 Impact Corruptions . | . . Robots Melted . | . . Combat Hostiles . | . . Parts Melted . | . . Heat Transferred 284 | 25 259 Parts Sabotaged . | . . Parts Stolen . | . . Parts Stripped . | . . Power Chain Reactions . | . . Alert | -11 -10 ------- Run | Yrd Mat Peak Influence 163 | 20 163 Initial 13 | . 13 Average 52 | 2 60 Maximum Alert Level . | . . Low Security (%) 100 | 100 100 Level 1 . | . . Level 2 . | . . Level 3 . | . . Level 4 . | . . Level 5 . | . . High Security . | . . Max Security . | . . Squads Dispatched 2 | . 2 Investigation 2 | . 2 Extermination . | . . Reinforcement . | . . Assault . | . . Garrison . | . . Intercept . | . . Searches Triggered . | . . Construction Impeded . | . . Haulers Reinforced . | . . Active Scanning Responses . | . . Cargo Convoy Interrupts . | . . Stealth | -11 -10 --------- Run | Yrd Mat Distress Signals . | . . Communications Jammed . | . . Distress Signals . | . . Times Spotted 15 | 1 14 Peak Tracking Total 3 | 1 3 Tactical Retreats . | . . Traps | -11 -10 ------- Run | Yrd Mat Traps Triggered 1 | . 1 Indirectly . | . . Trap Hack Attempts . | . . Triggered . | . . Disarmed . | . . Reprogrammed . | . . Reused . | . . Traps Extracted . | . . Installed . | . . Triggered . | . . Machines | -11 -10 ---------- Run | Yrd Mat Machines Disabled . | . . Max in Single Turn . | . . Machines Repaired . | . . Machines Dismantled . | . . Machines Sabotaged . | . . Overloaded Fab Kills . | . . Hacking | -11 -10 --------- Run | Yrd Mat Machines Accessed 3 | . 3 Terminals 3 | . 3 Fabricators . | . . Repair Stations . | . . Recycling Units . | . . Scanalyzers . | . . Garrison Access . | . . Total Hacks 14 | . 14 Successful 8 | . 8 Failed 6 | . 6 Catastrophic 1 | . 1 Database Lockouts . | . . Manual . | . . Terminals 14 | . 14 Fabricators . | . . Repair Stations . | . . Recycling Units . | . . Scanalyzers . | . . Garrison Access . | . . Terminal Hacks 8 | . 8 Record 7 | . 7 Prototype ID Bank 1 | . 1 Fabricator Hacks . | . . Repair Station Hacks . | . . Recycling Unit Hacks . | . . Scanalyzer . | . . Garrison Access Hacks . | . . Unauthorized Hacks . | . . Terminals . | . . Fabricators . | . . Repair Stations . | . . Recycling Units . | . . Scanalyzers . | . . Garrison Access . | . . Data Cores Recovered . | . . Used . | . . Hacking Detections 3 | . 3 Full Trace Events 1 | . 1 Feedback Events . | . . Feedback Blocked . | . . Robot Schematics Acquired . | . . Robots Built . | . . Authchips . | . . Time . | . . Total Robot Build Rating . | . . Part Schematics Acquired . | . . Parts Built . | . . Authchips . | . . Time . | . . Total Part Build Rating . | . . Parts Repaired . | . . Time . | . . Parts Recycled . | . . Recycled Matter . | . . Retrieved Matter . | . . Retrieved Components . | . . Parts Scanalyzed . | . . Part Schematics Acquired . | . . Parts Damaged . | . . Bothacking | -11 -10 ------------ Run | Yrd Mat Used RIF Installer . | . . Robots Hacked . | . . Non-combat . | . . Combat . | . . Robot Hacks Applied . | . . Relay Couplers Released . | . . Fabnet Peak Effective % . | . . Robots Rewired . | . . Allies Hacked . | . . Hacks Repelled . | . . Allies | -11 -10 -------- Run | Yrd Mat Total Allies . | . . Largest Group . | . . Highest-Rated Group . | . . Highest-Rated Ally . | . . Total Orders . | . . Ally Attacks . | . . Total Damage . | . . Kills . | . . Allies Corrupted . | . . Allies Melted . | . . Intel | -11 -10 ------- Run | Yrd Mat Robot Analysis Total . | . . Derelict Logs Recovered . | . . Drone Launches . | . . Drone Recoveries . | . . Exploration | -11 -10 ------------- Run | Yrd Mat Turns Passed 1002 | 134 868 Spaces Moved 466 | 104 362 Core 31 | 23 8 Treads . | . . Legs 233 | 81 152 Wheels . | . . Hover . | . . Flight 202 | . 202 Fastest Speed 50 | 50 120 Average Speed 176 | 104 197 Slowest Speed 400 | 120 400 Overloaded Moves . | . . Propulsion Burnouts . | . . Robots Hopped . | . . Cave-ins Triggered . | . . Exploration Rate (%) 30 | 6 54 Regions Visited 1 Branch Regions . Pre-discovered Areas . | . . Known Exits Taken . | . . Unknown Exits Taken 1 | 1 . Scrap Searched . | . . Spaces Dug . | . . Terrain Destroyed . | . . Melee . | . . Projectile . | . . AOE . | . . Terrain Rammed . | . . Walls Destroyed . | . . Machines Disabled . | . . Actions | -11 -10 --------- Run | Yrd Mat Total 571 | 122 449 Wait 2 | . 2 Move 465 | 103 362 Hop . | . . Pick Up 24 | 9 15 Fast Attach . | . . Attach 18 | 5 13 Detach 5 | . 5 Swap 5 | 2 3 Drop 12 | . 12 Fire 40 | 3 37 Melee . | . . Ram . | . . Kick . | . . Crush . | . . Escape Stasis . | . . Rewire . | . . Trap . | . . Miscellaneous . | . . Route ------- -11/Scrapyard -10/Materials (discovered 2 exits: [*Mat] / [*Min]) History --------- Turn | Location | Event 2 | -11/Scrapyard | Met Revision 17 101 | -11/Scrapyard | Discovered new exit (range 8) 135 | -11/Scrapyard | Entered Materials 343 | -10/Materials | Build established: Mutant 351 | -10/Materials | Discovered new exit (range 11) 544 | -10/Materials | Discovered new exit (range 14) 735 | -10/Materials | Core integrity fell below 50% 785 | -10/Materials | Lost 4 parts (1p2n1w) 991 | -10/Materials | Core integrity fell below 20% 1003 | -10/Materials | Destroyed by G-47 Trooper with Particle Gun Last Messages --------------- 00775_ Acquired 50 matter. 00775_ R-06 Scavenger collects Sml. Storage Unit. 00777_ K-01 Serf collects debris. 00790_ Acquired Aluminum Leg. 00790_ K-01 Serf collects debris. 00882_ Acquired Ion Engine. 00885_ Dropped Assault Rifle. 00887_ Dropped Hcp. Matter Pod. 00887_ Dropped Flight Unit. 00929_ Triggered Alarm Trap. 00929_ An alarm sounds. 00929_ ALERT: Alarm triggered, dispatching investigation squad. [Achievement: Storm Trooper] 00995_ Aluminum Leg destroyed. 01000_ M-13 Machinist repairs G-47 Trooper. 01001_ G-34 Mercenary destroyed. 01001_ Ion Engine destroyed. [Achievement: First Step to Greatness] Map ----- +----------------------------------------------------+ | | | ???????????##########????????????? | | ??????????# #????????????? | | ??????????# #????????????? | | ???######## """ """ #????????????? | | ???# # """ """ #????????????? | | ???# # """ """ #????????????? | | ???# # = #????????????? | | ???# """ #![ #????????????? | | ???# """ # #????????????? | | ???# """ #####+#####????????????? | | #########+### #??????????????? | | #??????????????? | | #??????????????? | | #??????????????? | | ##+##########= #??????????????? | | # #?## #########???????? | | # """ """ #??# # !#???????? | | # """ """ #??# # """ #???????? | | # """ """ #??# + """ #??###### | | # #??# # """ ! #?? ? | | # #??# # #? """ # | | # #??# #####/###? "T" # | | # #??# #???# ### # | | ###########??# #####=%!# # | | #????????????# =[ @ """ # | | #????????????# # """ # | | #????????????# # """ # | | ?????????????# ! #? ? | | ?????????????# !!! #? ? | | ????????????# !!! !#?? ! # | | ????????????# g !!! #??###### | | ????????????+ g #???????? | | ????????????# m #???????? | | ????????????# #####+##???????? | | ????????????# ???????????????? | | ????????????# ????????????????? | | ????????????# ????????????????? | | ????????????# ?????????????????? | | ????????????? ??????????????????? | | ?????????????????????????????????? | | ?????????????????????????????????? | | ?????????????????????????????????? | | ?????????????????????????????????? | | ?????????????????????????????????? | | ?????????????????????????????????? | | ?????????????????????????????????? | | ?????????????????????????????????? | | ?????????????????????????????????? | | ?????????????????????????????????? | +----------------------------------------------------+ Best States ------------- Heat Dissipation 25 Energy Generation 10 Energy Capacity 250 Matter Stores 418 Matter Capacity 500 Sight Range 16 Robot Scan Range 14 Terrain Scan Density 10 Evasion (%) 55 Item Schematics ----------------- None Robot Schematics ------------------ None Fabricated ------------ Nothing Alien Tech Used ----------------- None Achievements -------------- First Step to Greatness Loot Pinata One Hack Too Far Storm Trooper Challenges ------------ None Game ------ Seed ChipShadingFocus Manual? 0 Play Time 00:26:10 Cumulative 0.3 hours Start 2024.10.19 @ 20:11:29 End 2024.10.19 @ 21:28:17 Sessions 3 Manual Loads 0 Difficulty Rogue Special Mode None Game No. 1 Rogue 1 Adventurer 0 Explorer 0 Win Type - Total 0 Types 0/0/0/0/0/0/0/0/0 Lore% 0 Gallery% 1 Achievement% 1 Wizard Run 0 Options --------- Layout 1 ASCII 0 Keyboard 0 Movement Arrows Keybinds 0 Fullscreen 1 Font 24/Smallcaps Map View 50x35 Zoom Use 0% Tactical HUD 1 Map Filters NONE Filters NONE Steam 1 RUN: fcf24d98-e149-4c29-ab9e-c968cb6f0cf2